bitfinex/quotes_BTCUSD_20230405
["timestamp","ask_amount","ask_price","bid_price","bid_amount"]
[1680655525979,0.01,28470.0,28465.0,1.31370056]
[1680655526233,0.01,28470.0,28465.0,1.3564714]
[1680655526492,0.01,28470.0,28465.0,1.9331414]
[1680655526749,0.02104,28466.0,28465.0,1.3932564]
[1680655526991,0.02104,28466.0,28465.0,0.9906764]
[1680655527502,0.02104,28466.0,28465.0,1.6906764]
[1680655527716,0.02104,28466.0,28465.0,1.7186764]
[1680655527938,0.02104,28466.0,28465.0,2.0709764]
[1680655528160,0.02104,28466.0,28465.0,1.7429764]
[1680655528386,0.02104,28466.0,28465.0,1.2430264]
[1680655528905,0.02104,28466.0,28465.0,0.9906764]
[1680655529127,0.02104,28466.0,28465.0,0.8114094]
[1680655529806,0.02104,28466.0,28465.0,0.0683]
[1680655530039,0.02104,28466.0,28465.0,0.0353]
[1680655530264,0.02104,28466.0,28461.0,0.00012]
[1680655530265,0.1,28465.0,28461.0,0.00012]
[1680655530492,0.1484,28462.0,28458.0,0.00018]
[1680655530716,0.1479,28459.0,28458.0,0.00018]
[1680655530944,0.28979681,28459.0,28458.0,0.00018]
[1680655531184,0.14811,28459.0,28456.0,0.015813]
[1680655531415,0.14811,28459.0,28457.0,0.36222056]
[1680655531416,0.1479,28459.0,28457.0,0.36222056]
[1680655531640,0.1479,28459.0,28458.0,0.015812]
[1680655531860,0.002,28459.0,28458.0,0.02]
[1680655532300,0.1504,28459.0,28458.0,0.02]
[1680655532771,0.1484,28459.0,28455.0,6.135814]
[1680655532998,0.002,28459.0,28458.0,0.35471056]
[1680655533218,0.02125,28466.0,28461.0,0.1]
[1680655533446,0.02125,28466.0,28462.0,0.74322056]
[1680655533674,0.02104,28466.0,28465.0,0.3727]
[1680655533893,0.02125,28466.0,28465.0,0.74321856]
[1680655534150,0.02104,28466.0,28464.0,0.015809]
[1680655534366,0.02104,28466.0,28463.0,1.1]
[1680655534593,0.02104,28466.0,28464.0,0.007485]
[1680655534808,0.02104,28466.0,28465.0,0.015808]
[1680655535056,0.02104,28466.0,28465.0,0.37051856]
[1680655535254,0.02104,28466.0,28465.0,0.92618656]
[1680655535915,0.02104,28466.0,28465.0,1.01742156]
[1680655536140,0.02104,28466.0,28465.0,0.98942156]
[1680655536371,0.02104,28466.0,28465.0,1.01742156]
[1680655536638,0.02104,28466.0,28462.0,0.355]
[1680655536639,0.16944,28466.0,28462.0,0.00012]
[1680655536863,0.14189681,28465.0,28461.0,1.1]
[1680655537091,0.14210681,28465.0,28462.0,0.72741056]
[1680655537317,0.00021,28465.0,28462.0,0.72741056]
[1680655537533,0.16965,28466.0,28461.0,1.1]
[1680655537754,0.31330281,28466.0,28461.0,1.1]
[1680655538451,0.14189681,28465.0,28461.0,1.1]
[1680655538671,0.148,28462.0,28461.0,1.1]
[1680655538887,0.148,28462.0,28461.0,1.128]
[1680655539118,0.148,28462.0,28461.0,1.1]
[1680655539341,0.148,28462.0,28461.0,0.028]
[1680655539556,0.148,28462.0,28460.0,1.1]
[1680655539778,0.148,28462.0,28461.0,0.021]
[1680655540000,0.148,28462.0,28460.0,1.1]
[1680655540220,0.149756,28462.0,28461.0,0.021]
[1680655540495,0.148,28462.0,28457.0,1.10018]
[1680655540725,0.14189681,28461.0,28457.0,1.1]
[1680655540953,0.148,28462.0,28458.0,0.76196456]
[1680655541173,0.148,28462.0,28459.0,0.3727]
[1680655541396,0.148,28462.0,28458.0,0.407434]
[1680655541615,0.148,28462.0,28458.0,0.407374]
[1680655542065,0.148,28462.0,28458.0,0.00012]
[1680655542286,0.14821,28462.0,28459.0,0.028]
[1680655542541,0.148,28462.0,28456.0,0.115813]
[1680655542765,0.148,28462.0,28458.0,0.028]
[1680655542766,0.28989681,28462.0,28458.0,0.028]
[1680655543025,0.28989681,28462.0,28459.0,0.72741056]
[1680655543026,0.00021,28462.0,28459.0,0.72741056]
[1680655543248,0.00021,28463.0,28459.0,0.028]
[1680655543481,0.1471,28463.0,28459.0,0.028]
[1680655543678,0.14731,28463.0,28459.0,0.4]
[1680655543938,0.14731,28463.0,28460.0,0.023326]
[1680655544166,0.14731,28463.0,28460.0,0.007515]
[1680655544362,0.14731,28463.0,28460.0,0.023326]
[1680655544843,0.14731,28463.0,28460.0,0.007515]
[1680655545073,0.14731,28463.0,28460.0,0.035515]
[1680655545305,0.14731,28463.0,28460.0,0.007515]
[1680655545507,0.14731,28463.0,28460.0,0.035515]
[1680655545673,0.14731,28463.0,28460.0,0.007515]
[1680655545904,0.14731,28463.0,28460.0,0.035515]
[1680655546105,0.1484,28461.0,28460.0,0.028]
[1680655546254,0.1484,28461.0,28460.0,0.035063]
[1680655546468,0.29205281,28461.0,28460.0,0.035063]
[1680655546686,0.14861,28461.0,28460.0,0.028]
[1680655546899,0.1484,28461.0,28460.0,0.028]
[1680655547113,0.1484,28461.0,28459.0,9.0]
[1680655547327,0.14861,28461.0,28460.0,0.035447]
[1680655547550,0.14861,28461.0,28460.0,0.028]
[1680655548039,0.14861,28461.0,28460.0,0.035357]
[1680655548232,0.14861,28461.0,28460.0,0.007357]
[1680655548452,0.163471,28461.0,28460.0,0.028]
[1680655548675,0.163471,28461.0,28459.0,9.0]
[1680655548676,0.50507656,28461.0,28459.0,9.0]
[1680655548890,0.35471056,28460.0,28459.0,9.0]
[1680655549117,0.00021,28460.0,28459.0,9.0]
[1680655549332,0.00021,28460.0,28459.0,9.007087]
[1680655549744,0.00021,28460.0,28459.0,9.0]
[1680655550413,0.35492056,28460.0,28459.0,9.0]
[1680655550637,0.35492056,28460.0,28459.0,9.027]
[1680655550999,0.35492056,28460.0,28459.0,9.0]
[1680655551219,0.35492056,28460.0,28459.0,9.027]
[1680655551418,0.35492056,28460.0,28459.0,9.0]
[1680655551626,0.73640356,28460.0,28459.0,9.027]
[1680655551894,0.40985256,28460.0,28459.0,9.0]
[1680655552131,0.41687956,28460.0,28459.0,9.0]
[1680655552356,0.42908282,28460.0,28459.0,9.021]
[1680655552574,0.37220356,28460.0,28459.0,9.021]
[1680655553036,0.79711656,28460.0,28459.0,9.021]
[1680655553331,0.40713356,28460.0,28459.0,9.0]
[1680655553530,0.35692056,28460.0,28459.0,9.002]
[1680655553784,0.35492056,28460.0,28459.0,9.0]
[1680655554005,0.35692056,28460.0,28459.0,9.002]
[1680655554245,0.35492056,28460.0,28459.0,9.0]
[1680655554464,0.35692056,28460.0,28459.0,9.002]
[1680655554682,0.35492056,28460.0,28459.0,9.0]
[1680655554908,0.35492056,28460.0,28459.0,9.008]
[1680655554909,0.00021,28460.0,28459.0,9.008]
[1680655556242,0.00021,28460.0,28459.0,9.015551]
[1680655556437,0.00021,28460.0,28459.0,9.007571]
[1680655556649,0.00021,28460.0,28459.0,9.008571]
[1680655556861,0.00021,28460.0,28459.0,9.007571]
[1680655557081,0.00021,28460.0,28459.0,9.015571]
[1680655557299,0.00021,28460.0,28459.0,9.007571]
[1680655557519,0.14861,28461.0,28459.0,9.001]
[1680655557739,0.1484,28461.0,28459.0,9.0]
[1680655557965,0.1484,28461.0,28459.0,9.008]
[1680655558167,0.1484,28461.0,28459.0,9.0]
[1680655558441,0.35471056,28460.0,28459.0,9.0]
[1680655558663,0.36018956,28460.0,28459.0,9.0]
[1680655558883,0.78137656,28460.0,28459.0,9.0]
[1680655559104,0.78137656,28460.0,28459.0,9.021]
[1680655559560,0.78137656,28460.0,28459.0,9.001]
[1680655560008,0.78137656,28460.0,28459.0,9.0]
[1680655560448,0.40272756,28460.0,28459.0,9.00018]
[1680655560666,0.40272756,28460.0,28459.0,9.00118]
[1680655560667,0.77718356,28460.0,28459.0,9.00118]
[1680655560890,0.40448356,28460.0,28459.0,9.00118]
[1680655561995,0.77718356,28460.0,28459.0,9.00018]
[1680655562695,0.77542756,28460.0,28459.0,9.00018]
[1680655562935,0.77542756,28460.0,28459.0,9.00118]
[1680655562936,0.77718356,28460.0,28459.0,9.00118]
[1680655563152,0.77718356,28460.0,28459.0,9.00218]
[1680655563637,0.77718356,28460.0,28459.0,9.00018]
[1680655563857,0.77718356,28460.0,28459.0,9.00218]
[1680655564527,0.77739356,28460.0,28459.0,9.001821]
[1680655564743,0.40293756,28460.0,28459.0,8.999821]
[1680655564971,0.40469356,28460.0,28459.0,8.999821]
[1680655565195,0.40293756,28460.0,28459.0,8.999821]
[1680655565415,0.40293756,28460.0,28459.0,9.000001]
[1680655565416,0.35424056,28460.0,28459.0,9.000001]
[1680655567010,0.78182656,28460.0,28459.0,9.000001]
[1680655567239,0.94592656,28460.0,28459.0,9.000001]
[1680655567702,0.94417056,28460.0,28459.0,9.000001]
[1680655567939,0.57194056,28460.0,28459.0,9.000001]
[1680655568162,0.51881056,28460.0,28459.0,9.000001]
[1680655568597,0.51881056,28460.0,28459.0,9.001001]
[1680655568855,0.57032756,28460.0,28459.0,9.000001]
[1680655569071,0.57254056,28460.0,28459.0,9.000001]
[1680655569286,0.51881056,28460.0,28459.0,9.000001]
[1680655570184,0.56882556,28460.0,28459.0,9.000001]
[1680655570412,0.1641,28460.0,28459.0,9.000001]
[1680655570633,0.0818,28460.0,28459.0,9.000001]
[1680655570874,0.0818,28460.0,28459.0,9.047437]
[1680655571099,0.0818,28460.0,28459.0,9.015813]
[1680655571565,0.0823,28460.0,28459.0,9.042813]
[1680655571787,0.0823,28460.0,28459.0,9.01564234]
[1680655572013,0.0823,28460.0,28459.0,9.04246234]
[1680655572246,0.0823,28460.0,28459.0,9.01552234]
[1680655572477,0.082,28463.0,28459.0,9.46786788]
[1680655572902,0.082,28463.0,28460.0,0.1]
[1680655573130,0.082,28463.0,28461.0,0.015811]
[1680655573597,0.082,28463.0,28460.0,0.015811]
[1680655573829,0.082,28463.0,28459.0,9.08142888]
[1680655574090,0.02104,28466.0,28461.0,0.027]
[1680655574316,0.02104,28466.0,28462.0,0.9198601]
[1680655574552,0.02104,28466.0,28464.0,0.25742854]
[1680655574786,0.0211,28477.0,28476.0,0.3727]
[1680655574787,0.02131,28477.0,28476.0,0.3727]
[1680655575017,0.0211,28477.0,28476.0,0.83802856]
[1680655575246,0.0211,28477.0,28476.0,0.110618]
[1680655575478,0.0211,28477.0,28475.0,0.00018]
[1680655575710,0.43701056,28476.0,28472.0,0.00018]
[1680655575959,0.0823,28476.0,28471.0,0.00018]
[1680655576198,0.57890737,28476.0,28469.0,0.09809259]
[1680655576430,0.0211,28477.0,28473.0,0.5582]
[1680655576661,0.0211,28477.0,28476.0,0.014]
[1680655576889,0.0211,28477.0,28476.0,0.047407]
[1680655577120,0.0211,28477.0,28474.0,0.00018]
[1680655577344,0.0211,28477.0,28476.0,0.5418]
[1680655578273,0.0211,28477.0,28476.0,0.930302]
[1680655578518,0.0211,28477.0,28476.0,1.26921056]
[1680655578744,0.0211,28477.0,28476.0,0.549249]
[1680655578991,0.0211,28477.0,28476.0,0.5418]
[1680655579689,0.1029,28477.0,28476.0,0.54169228]
[1680655579923,0.1029,28477.0,28476.0,0.55569228]
[1680655580157,0.0001,28477.0,28476.0,2.21304312]
[1680655580393,0.01356664,28494.0,28489.0,0.4]
[1680655580633,4.60216251,28500.0,28489.0,0.4]
[1680655580634,0.36875044,28500.0,28489.0,0.46545856]
[1680655580892,0.653604,28499.0,28489.0,0.35489056]
[1680655581179,0.653604,28499.0,28476.0,0.27552339]
[1680655581180,0.5,28487.0,28476.0,0.27552339]
[1680655581428,0.1,28490.0,28476.0,0.27552339]
[1680655581429,0.1646,28477.0,28476.0,0.26170339]
[1680655581660,0.28250781,28477.0,28476.0,0.26170339]
[1680655581906,0.28250781,28477.0,28476.0,1.119185]
[1680655581907,0.051288,28477.0,28476.0,1.119185]
[1680655582116,0.00018,28486.0,28483.0,0.13007105]
[1680655582338,0.0818,28486.0,28480.0,0.00018]
[1680655582575,0.047058,28485.0,28481.0,0.35471056]
[1680655582805,0.047058,28485.0,28481.0,0.72759056]
[1680655583031,0.047058,28485.0,28484.0,0.13007105]
[1680655583256,0.047058,28485.0,28484.0,0.13025105]
[1680655583482,0.047058,28485.0,28481.0,0.37288]
[1680655583707,0.0823,28487.0,28483.0,0.3727]
[1680655583931,0.0823,28487.0,28484.0,0.72741056]
[1680655584154,0.0823,28487.0,28484.0,0.74141056]
[1680655584610,0.0823,28487.0,28486.0,0.3727]
[1680655584840,0.00018,28490.0,28486.0,0.72241056]
[1680655585086,0.0823,28491.0,28486.0,0.3727]
[1680655585318,0.089319,28491.0,28486.0,0.3727]
[1680655585551,0.0525,28490.0,28489.0,1.4727]
[1680655585823,0.0525,28490.0,28489.0,0.3727]
[1680655586048,0.0525,28490.0,28488.0,0.00018]
[1680655586284,0.0525,28490.0,28489.0,1.82741056]
[1680655586512,0.02128,28495.0,28491.0,0.3727]
[1680655586744,0.059601,28494.0,28492.0,0.3727]
[1680655586964,0.047955,28493.0,28490.0,0.00018]
[1680655587185,0.137074,28493.0,28488.0,0.3727]
[1680655587404,0.089119,28493.0,28490.0,0.3727]
[1680655587855,0.049745,28492.0,28488.0,0.00018]
[1680655588080,0.014038,28493.0,28489.0,0.35471056]
[1680655588310,0.0211,28495.0,28489.0,0.72741056]
[1680655588311,0.035137,28495.0,28489.0,0.72741056]
[1680655588538,0.028118,28495.0,28492.0,0.3727]
[1680655588759,0.028118,28495.0,28492.0,0.72741056]
[1680655589214,0.0211,28495.0,28494.0,0.3727]
[1680655589441,0.079891,28495.0,28494.0,0.72741056]
[1680655589701,0.080071,28495.0,28492.0,0.39988]
[1680655589925,0.052596,28494.0,28490.0,0.00018]
[1680655590144,0.007019,28493.0,28492.0,1.128]
[1680655590369,0.046593,28493.0,28492.0,1.1]
[1680655590591,0.007019,28493.0,28492.0,1.1]
[1680655590826,0.007019,28493.0,28490.0,0.35489056]
[1680655590827,0.059694,28493.0,28491.0,0.3727]
[1680655591057,0.007019,28493.0,28492.0,1.1]
[1680655591511,0.059412,28493.0,28491.0,0.3727]
[1680655591735,0.007019,28493.0,28492.0,1.1]
[1680655591958,0.058092,28493.0,28490.0,0.00012]
[1680655592209,0.007019,28493.0,28492.0,0.027]
[1680655592396,0.007019,28493.0,28484.0,1.10018]
[1680655592397,0.138685,28493.0,28484.0,1.10018]
[1680655592630,0.27207281,28492.0,28491.0,0.028]
[1680655592940,0.151414,28492.0,28487.0,1.4727]
[1680655593137,0.052159,28491.0,28487.0,1.1]
[1680655593400,0.00702,28490.0,28487.0,1.1]
[1680655593630,0.08178,28492.0,28487.0,1.1]
[1680655593851,0.088619,28492.0,28487.0,1.4727]
[1680655594307,0.539955,28495.0,28487.0,1.47288]
[1680655594560,0.0818,28492.0,28491.0,0.014]
[1680655594838,0.141459,28492.0,28491.0,0.014]
[1680655595061,0.141459,28492.0,28489.0,0.37288]
[1680655595286,0.052684,28491.0,28489.0,0.37288]
[1680655595505,0.0818,28492.0,28489.0,0.37288]
[1680655595725,0.0818,28492.0,28491.0,0.014]
[1680655595960,0.007019,28494.0,28490.0,1.47288]
[1680655596183,0.007019,28493.0,28490.0,1.82759056]
[1680655596671,0.0211,28495.0,28492.0,0.3727]
[1680655596893,0.007019,28493.0,28491.0,0.37288]
[1680655597120,0.007019,28493.0,28492.0,0.007494]
[1680655597121,0.006919,28493.0,28492.0,0.007494]
[1680655597351,0.007019,28493.0,28490.0,1.10018]
[1680655597638,0.006919,28493.0,28491.0,0.028]
[1680655597916,0.021,28495.0,28492.0,0.3727]
[1680655598148,0.021,28495.0,28491.0,0.35471056]
[1680655598149,0.007019,28493.0,28491.0,0.00018]
[1680655598363,0.36875044,28500.0,28499.0,8.47897734]
[1680655598661,0.744723,28500.0,28499.0,8.47897734]
[1680655598881,0.58098244,28500.0,28499.0,8.47397734]
[1680655599347,0.935693,28500.0,28499.0,8.47397734]
[1680655600274,0.935483,28500.0,28499.0,8.50109734]
[1680655600543,0.41787244,28500.0,28499.0,8.47415734]
[1680655600758,0.41787244,28500.0,28499.0,8.47515734]
[1680655601449,0.41787244,28500.0,28499.0,8.47415734]
[1680655601661,0.41808244,28500.0,28499.0,8.49097734]
[1680655602576,0.29302244,28500.0,28499.0,8.49103734]
[1680655602795,0.29302244,28500.0,28499.0,8.49115734]
[1680655602796,0.29287244,28500.0,28499.0,8.49115734]
[1680655603474,0.29287244,28500.0,28499.0,8.48109734]
[1680655603733,0.29308244,28500.0,28499.0,8.48097734]
[1680655604650,0.29308244,28500.0,28499.0,8.48079834]
[1680655604883,0.865754,28500.0,28499.0,8.48079834]
[1680655605622,0.51104344,28500.0,28499.0,8.48079834]
[1680655605836,0.45668244,28500.0,28499.0,8.48079834]
[1680655606283,0.50744644,28500.0,28499.0,8.48079834]
[1680655606477,0.38223644,28500.0,28499.0,8.48097834]
[1680655606712,0.33147244,28500.0,28499.0,8.48097834]
[1680655607158,0.38104244,28500.0,28499.0,8.48097834]
[1680655607837,0.33147244,28500.0,28499.0,8.48097834]
[1680655608526,0.33147244,28500.0,28499.0,8.32768739]
[1680655608719,0.24998244,28500.0,28499.0,8.32762739]
[1680655608953,0.24492244,28500.0,28499.0,8.32774739]
[1680655609187,0.24477244,28500.0,28499.0,8.32780739]
[1680655609827,0.32687244,28500.0,28499.0,8.32780739]
[1680655610913,0.11526083,28504.0,28499.0,8.32780739]
[1680655610914,0.08006,28512.0,28510.0,4.36327844]
[1680655611148,0.54424261,28510.0,28499.0,0.02218]
[1680655611413,0.0819,28500.0,28499.0,0.02218]
[1680655611644,0.67824,28500.0,28491.0,0.00012]
[1680655611869,0.0816,28492.0,28491.0,0.00018]
[1680655612120,0.184661,28492.0,28491.0,0.00018]
[1680655612346,0.32655781,28492.0,28491.0,0.00018]
[1680655612568,0.184661,28492.0,28491.0,0.00018]
[1680655612795,0.68126837,28492.0,28491.0,0.00818]
[1680655613021,0.6074984,28492.0,28491.0,0.00018]
[1680655613241,0.6074984,28492.0,28491.0,0.00812]
[1680655613471,0.6159984,28492.0,28491.0,0.008]
[1680655613698,1.3658984,28492.0,28491.0,0.008]
[1680655613926,1.3658984,28492.0,28486.0,0.00042295]
[1680655614143,0.99985751,28491.0,28486.0,0.00042295]
[1680655614362,0.0822,28487.0,28486.0,0.00042295]
[1680655614573,0.60270056,28487.0,28486.0,0.00042295]
[1680655615506,0.62970056,28487.0,28486.0,0.00042295]
[1680655615722,0.60270056,28487.0,28486.0,0.00042295]
[1680655615946,0.68492418,28487.0,28486.0,0.00042295]
[1680655616165,0.71192418,28487.0,28486.0,0.00042295]
[1680655616361,0.68492418,28487.0,28486.0,0.00042295]
[1680655616597,0.71192418,28487.0,28486.0,0.00042295]
[1680655616827,0.204783,28487.0,28486.0,0.00042295]
[1680655617053,0.176701,28487.0,28486.0,0.00042295]
[1680655617726,0.176701,28487.0,28486.0,0.00012]
[1680655617940,0.176701,28487.0,28486.0,0.00018]
[1680655617941,0.51737056,28487.0,28486.0,0.00018]
[1680655618371,0.149701,28487.0,28486.0,0.00018]
[1680655618624,0.50541156,28487.0,28486.0,0.00518]
[1680655618844,0.45797156,28487.0,28486.0,0.00018]
[1680655619069,0.46597156,28487.0,28486.0,0.00118]
[1680655619510,0.51861256,28487.0,28486.0,0.00118]
[1680655619732,0.51061256,28487.0,28486.0,0.00018]
[1680655620187,0.52640956,28487.0,28486.0,0.00018]
[1680655621313,0.52640956,28487.0,28486.0,0.001]
[1680655621314,0.53440956,28487.0,28486.0,0.001]
[1680655621750,1.28930956,28487.0,28486.0,0.001]
[1680655621966,1.29780956,28487.0,28486.0,0.001]
[1680655623519,1.29780956,28487.0,28481.0,0.00018]
[1680655623520,1.28980956,28487.0,28481.0,0.00018]
[1680655623749,0.0822,28482.0,28480.0,0.028075]
[1680655623968,0.52508256,28481.0,28480.0,0.028075]
[1680655624700,0.53315961,28481.0,28480.0,0.028075]
[1680655625130,0.54015961,28481.0,28480.0,0.028075]
[1680655625354,0.62235961,28481.0,28480.0,0.028075]
[1680655625597,0.61535961,28481.0,28480.0,0.028075]
[1680655625830,0.61535961,28481.0,28476.0,0.50018]
[1680655626044,0.0814,28477.0,28476.0,0.50018]
[1680655626282,0.150234,28477.0,28476.0,0.50018]
[1680655626713,0.150234,28477.0,28476.0,0.49989228]
[1680655626936,0.151234,28477.0,28476.0,0.49989228]
[1680655627611,0.50594456,28477.0,28476.0,0.49989228]
[1680655627833,0.50615456,28477.0,28476.0,0.49989228]
[1680655629572,0.50648552,28477.0,28476.0,0.49989228]
[1680655631997,0.51498552,28477.0,28476.0,0.49989228]
[1680655632233,0.50648552,28477.0,28476.0,0.49989228]
[1680655632672,0.50548552,28477.0,28476.0,0.49989228]
[1680655632890,0.50648552,28477.0,28476.0,0.49989228]
[1680655633108,0.50585319,28477.0,28476.0,0.50002354]
[1680655633332,0.50485319,28477.0,28476.0,0.50002354]
[1680655633550,0.50585319,28477.0,28476.0,0.50002354]
[1680655633774,0.69946312,28477.0,28476.0,0.00013126]
[1680655634001,0.64866631,28477.0,28473.0,0.52299228]
[1680655634225,0.50528156,28476.0,28473.0,0.52312354]
[1680655634417,0.0822,28474.0,28473.0,0.52312354]
[1680655634667,0.49622852,28474.0,28473.0,0.52312354]
[1680655634890,1.02310527,28474.0,28473.0,0.02323126]
[1680655635106,1.32310527,28474.0,28473.0,0.0231]
[1680655635347,1.32331527,28474.0,28473.0,0.0231]
[1680655635560,1.43731527,28474.0,28473.0,0.0231]
[1680655635778,1.42331527,28474.0,28473.0,0.0231]
[1680655636040,1.46575393,28474.0,28473.0,0.0231]
[1680655636258,1.46554393,28474.0,28473.0,0.0231]
[1680655636477,1.43854393,28474.0,28473.0,0.0231]
[1680655636694,1.61414393,28474.0,28473.0,0.0231]
[1680655636915,1.64135393,28474.0,28473.0,0.0231]
[1680655637147,1.64114393,28474.0,28468.0,0.52312354]
[1680655637378,0.0816,28469.0,28468.0,0.52312354]
[1680655637616,0.63165452,28469.0,28468.0,0.52312354]
[1680655637830,1.08655452,28469.0,28468.0,0.52312354]
[1680655638076,1.08655452,28469.0,28468.0,0.02323126]
[1680655638296,1.38655452,28469.0,28468.0,0.0231]
[1680655638519,1.39247952,28469.0,28468.0,0.0231]
[1680655638740,0.59277952,28469.0,28468.0,0.0231]
[1680655638960,0.61127952,28469.0,28468.0,0.02299168]
[1680655639194,0.58427952,28469.0,28468.0,0.02299168]
[1680655639415,0.59022847,28469.0,28468.0,0.52233442]
[1680655639608,0.58980614,28469.0,28468.0,0.52246568]
[1680655639894,0.66280614,28469.0,28468.0,0.52246568]
[1680655640123,1.47039414,28469.0,28468.0,0.0225734]
[1680655640319,1.47039414,28469.0,28468.0,0.02244214]
[1680655640572,1.47910414,28469.0,28468.0,0.02244214]
[1680655640786,1.48010414,28469.0,28468.0,0.02244214]
[1680655641015,0.42068952,28469.0,28468.0,0.02244214]
[1680655641242,0.44748687,28469.0,28468.0,0.02232214]
[1680655641469,0.42036687,28469.0,28468.0,0.02232214]
[1680655641704,0.52956687,28469.0,28468.0,0.02232214]
[1680655641941,0.50256687,28469.0,28468.0,0.02232214]
[1680655642168,0.52956687,28469.0,28468.0,0.02232214]
[1680655642398,0.50256687,28469.0,28468.0,0.0224534]
[1680655642624,0.50956687,28469.0,28468.0,0.0224534]
[1680655642847,0.50956687,28469.0,28468.0,0.52234568]
[1680655643539,0.50256687,28469.0,28468.0,0.52234568]
[1680655643775,0.50356687,28469.0,28468.0,0.52234568]
[1680655643997,0.50256687,28469.0,28468.0,0.52234568]
[1680655644233,0.51656687,28469.0,28468.0,0.52234568]
[1680655644456,0.52506687,28469.0,28468.0,0.52234568]
[1680655645125,0.51106687,28469.0,28468.0,0.52234568]
[1680655645345,0.52527687,28469.0,28468.0,0.52115064]
[1680655645811,0.52464454,28469.0,28468.0,0.5212819]
[1680655646493,0.51064454,28469.0,28468.0,0.5212819]
[1680655646718,0.53064454,28469.0,28468.0,0.5212819]
[1680655647170,0.06996396,28469.0,28468.0,0.5212819]
[1680655647406,0.02033096,28469.0,28468.0,0.52115064]
[1680655647655,0.02033096,28469.0,28468.0,0.5284329]
[1680655648114,0.00021,28476.0,28469.0,0.1]
[1680655648335,0.005267,28477.0,28469.0,0.90951056]
[1680655648566,0.005267,28477.0,28476.0,0.49989228]
[1680655648791,0.058904,28477.0,28476.0,0.49989228]
[1680655650143,0.059904,28477.0,28476.0,0.51489228]
[1680655651074,0.43568356,28477.0,28476.0,0.51489228]
[1680655651328,0.44418356,28477.0,28476.0,0.51489228]
[1680655651793,0.52598356,28477.0,28476.0,0.51478456]
[1680655652014,0.6256689,28477.0,28476.0,0.51491582]
[1680655652231,0.6301689,28477.0,28476.0,0.51491582]
[1680655652450,0.6291689,28477.0,28476.0,0.49991582]
[1680655652673,0.6301689,28477.0,28476.0,0.51491582]
[1680655652890,0.6291689,28477.0,28476.0,0.49991582]
[1680655653119,0.6411689,28477.0,28476.0,0.50091582]
[1680655653350,0.6291689,28477.0,28476.0,0.49991582]
[1680655653577,0.75743019,28477.0,28476.0,0.50191582]
[1680655654262,0.6461689,28477.0,28476.0,0.50191582]
[1680655654477,0.5461689,28477.0,28476.0,0.50191582]
[1680655657059,0.07558934,28477.0,28476.0,0.50191582]
[1680655657274,0.08612334,28477.0,28476.0,0.50178456]
[1680655657922,0.06912334,28477.0,28476.0,0.49978456]
[1680655658135,0.07012334,28477.0,28476.0,0.50778456]
[1680655658358,0.06912334,28477.0,28476.0,0.49967624]
[1680655658555,0.07012334,28477.0,28476.0,0.50767624]
[1680655658770,0.06912334,28477.0,28476.0,0.49967624]
[1680655658997,0.00021,28479.0,28476.0,0.50067624]
[1680655659231,0.005267,28477.0,28476.0,0.50067624]
[1680655659437,0.058064,28477.0,28476.0,0.50067624]
[1680655659657,0.058064,28477.0,28476.0,0.50079624]
[1680655659878,0.058064,28477.0,28476.0,0.5008075]
[1680655660097,0.005477,28479.0,28476.0,0.4998075]
[1680655660309,0.005267,28479.0,28476.0,0.49967624]
[1680655660731,0.005267,28479.0,28476.0,0.57965624]
[1680655660950,0.005266,28480.0,28477.0,0.07998]
[1680655661175,0.05715,28479.0,28476.0,0.49967624]
[1680655661393,0.005267,28479.0,28477.0,0.07998]
[1680655661630,0.006267,28479.0,28476.0,0.52267624]
[1680655661864,0.005267,28479.0,28476.0,0.49967624]
[1680655662075,0.005267,28479.0,28477.0,0.023]
[1680655662300,0.005267,28479.0,28476.0,0.49967624]
[1680655662535,0.006267,28479.0,28476.0,0.52267624]
[1680655662748,0.08651,28483.0,28476.0,0.52267624]
[1680655662749,0.08651,28483.0,28477.0,0.07998]
[1680655663031,0.001,28479.0,28477.0,0.10098]
[1680655663266,0.001,28479.0,28478.0,0.07998]
[1680655663898,0.005266,28482.0,28478.0,0.07998]
[1680655664112,0.005266,28482.0,28481.0,0.49967624]
[1680655664326,0.056755,28482.0,28481.0,0.49967624]
[1680655664536,0.005266,28482.0,28481.0,0.49967624]
[1680655665192,0.005266,28482.0,28481.0,0.51267624]
[1680655665407,0.005266,28482.0,28481.0,0.49967624]
[1680655665628,0.010532,28485.0,28483.0,0.49967624]
[1680655665856,0.005266,28484.0,28483.0,0.49967624]
[1680655666061,0.056345,28484.0,28483.0,0.49967624]
[1680655667561,0.056345,28484.0,28483.0,0.32159888]
[1680655668413,0.056345,28484.0,28483.0,0.31810239]
[1680655670472,0.056345,28484.0,28483.0,0.32410239]
[1680655670693,0.056345,28484.0,28483.0,0.31810239]
[1680655670938,0.41105556,28484.0,28483.0,0.31810239]
[1680655671163,0.41955556,28484.0,28483.0,0.31823365]
[1680655671832,0.48579162,28484.0,28483.0,0.00013126]
[1680655672063,0.89609162,28484.0,28480.0,0.31810239]
[1680655672287,0.1,28482.0,28480.0,0.31823365]
[1680655672519,0.44129056,28481.0,28480.0,0.31823365]
[1680655672737,0.44979056,28481.0,28480.0,0.31823365]
[1680655672965,0.55999056,28481.0,28480.0,0.31823365]
[1680655673194,0.55999056,28481.0,28480.0,0.31922239]
[1680655673409,0.55999056,28481.0,28480.0,0.00012]
[1680655673609,0.76107696,28481.0,28480.0,0.31810239]
[1680655673843,0.90297377,28481.0,28480.0,0.00212]
[1680655674074,0.90297377,28481.0,28475.0,0.31823365]
[1680655674075,0.76107696,28481.0,28475.0,0.31823365]
[1680655674296,0.111,28477.0,28475.0,0.31823365]
[1680655674514,0.45437256,28476.0,28475.0,0.31823365]
[1680655676085,0.75437256,28476.0,28475.0,0.31823365]
[1680655676483,0.75458256,28476.0,28475.0,0.31910239]
[1680655676700,0.399872,28476.0,28475.0,0.31810239]
[1680655676937,0.078592,28476.0,28475.0,0.32022239]